Cogmind - Beta 10.2 @@@ ROGUE MODE // 2021.09.09 @ 00:59:39 Player: Backstabs Result: Destroyed by S-10 Pest with Light Assault Rifle Performance ------------- Evolutions (0) 0 Regions Visited (2) 400 Robots Destroyed (5) 25 Value Destroyed (50) 50 Prototype IDs (0) 0 Alien Tech Used (0) 0 Bonus (0) 0 TOTAL SCORE: 475 Bonus ------- None Cogmind --------- Core Integrity 0/250 Matter 300/300 Energy 100/100 System Corruption 0% Temperature Cool (0) Movement Treading (160) Location -10/Mines Parts ------- > --- POWER (1) -------- (None) > --- PROPULSION (2) --- Light Treads > --- UTILITY (2) ------ Large Storage Unit Signal Interpreter > --- WEAPON (2) ------- EM Pulse Gun > --- INVENTORY (10) --- Ion Engine Small Storage Unit Large Storage Unit Large Battery (300) Terrain Scan Processor Peak State ------------ > --- POWER ------------ Ion Engine > --- PROPULSION ------- Light Treads Light Treads > --- UTILITY ---------- Large Storage Unit Signal Interpreter > --- WEAPON ----------- Small Laser Light Assault Rifle > --- INVENTORY -------- Ion Engine Small Storage Unit Large Storage Unit Large Battery EM Pulse Gun [Rating: 7] Favorites ----------- Power Ion Engine Engine Ion Engine Propulsion Light Treads Treads Light Treads Utility Large Storage Unit Storage Large Storage Unit Processor Signal Interpreter Weapon Light Assault Rifle Energy Gun EM Pulse Gun Ballistic Gun Light Assault Rifle Build | -11 -10 -10 ------- Run | Scr Mat Min Slots Evolved . | . . . Power . | . . . Propulsion . | . . . Utility . | . . . Weapon . | . . . Parts Attached 9 | 5 2 2 Power 1 | 1 . . Engine 1 | 1 . . Core . | . . . Reactor . | . . . Propulsion 2 | 2 . . Treads 2 | 2 . . Leg . | . . . Wheel . | . . . Hover . | . . . Flight . | . . . Utility 3 | 1 2 . Device . | . . . Storage 2 | 1 1 . Processor 1 | . 1 . Hackware . | . . . Protection . | . . . Artifact . | . . . Weapon 3 | 1 . 2 Energy Gun 2 | . . 2 Energy Cannon . | . . . Ballistic Gun 1 | 1 . . Ballistic Cannon . | . . . Launcher . | . . . Special Weapon . | . . . Impact Weapon . | . . . Slashing Weapon . | . . . Piercing Weapon . | . . . Special Melee Weapon . | . . . Unidentified Prototypes . | . . . Parts Lost 4 | . . 4 Power 1 | . . 1 Propulsion 1 | . . 1 Utility . | . . . Weapon 2 | . . 2 Highest Loss Streak 4 | . . 4 Average Slot Usage (%) 74 | . 83 66 Engine 10 | . 14 6 Treads 23 | . 28 19 Storage 19 | . 25 14 Processor 7 | . 1 14 Energy Gun 2 | . . 4 Ballistic Gun 10 | . 14 7 Naked Turns . | . . . Heaviest Build 26 | 10 26 22 Greatest Support 40 | 40 40 40 Greatest Overweight (x) 1 | . . 1 Average Overweight (x) . | . . . Largest Inventory Capacity 12 | 6 12 10 Average Capacity 9 | 5 11 10 Most Carried 6 | 4 6 6 Average Carried 4 | 2 4 5 Final Capacity 10 | 6 10 10 Final Carried 6 | 3 6 5 Class Distribution -------------------- 100% | Mutant Dominant Class ---------------- Mutant | -10/Materials Mutant | -10/Mines Resources | -11 -10 -10 ----------- Run | Scr Mat Min Matter Collected 295 | 227 . 68 Remotely . | . . . Salvage Created 97 | . . 97 Parts 10 | . . 10 Haulers Intercepted . | . . . Recyclers Shooed . | . . . Parts Field Recycled . | . . . Retrieved Matter . | . . . Parts Self-Destructed . | . . . Prevented . | . . . Kills | -11 -10 -10 ------- Run | Scr Mat Min Combat Hostiles Destroyed 6 | . . 6 Guns 6 | . . 6 Classes Destroyed 2 | . . 2 Swarmer 5 | . . 5 Assembled 1 | . . 1 Best Kill Streak 3 | . . 3 Combat Bots Only 3 | . . 3 Max Kills in Single Turn 1 | . . 1 Gunslinging . | . . . Exploded . | . . . Melee . | . . . Uniques/NPCs Destroyed . | . . . Combat | -11 -10 -10 -------- Run | Scr Mat Min Damage Taken 795 | . . 795 Core 252 | . . 252 Absorbed by Shields . | . . . Core Remaining (%) 100 | 100 . . Volleys Fired 32 | . 7 25 Largest 2 | . 1 2 Hottest 60 | . 20 60 Shots Fired 38 | . 7 31 Gun 38 | . 7 31 Cannon . | . . . Launcher . | . . . Special . | . . . Kinetic 29 | . 7 22 Thermal 6 | . . 6 Explosive . | . . . Electromagnetic 3 | . . 3 Robot Hit Streak 6 | . 2 6 Robot Miss Streak 3 | . 3 2 Penetration Max . | . . . Secondary Targets 1 | . . 1 Max Gunslinging Chain 1 | . . 1 Shots Hit Robots 25 | . 3 22 Core Hits 13 | . 2 11 Critical Hits . | . . . Critical Kills . | . . . Critical Parts Destroyed . | . . . Melee Attacks . | . . . Impact . | . . . Slashing . | . . . Piercing . | . . . Sneak Attacks . | . . . Combat Hostiles . | . . . Follow-up Attacks . | . . . Damage Inflicted 242 | . 32 210 Guns 234 | . 24 210 Cannons . | . . . Explosions . | . . . Melee . | . . . Ramming 8 | . 8 . Kinetic 146 | . 24 122 Thermal 55 | . . 55 Explosive . | . . . Electromagnetic 33 | . . 33 Impact . | . . . Slashing . | . . . Piercing . | . . . Highest Corruption . | . . . Average Corruption . | . . . Corruption Purged . | . . . Overload Shots . | . . . Overflow Damage . | . . . Projectiles . | . . . Explosions . | . . . Melee . | . . . Knockbacks . | . . . Impact . | . . . Kinetic . | . . . Secondary . | . . . Self-Inflicted Damage . | . . . Shots . | . . . Rammed 3 | . 3 . Targets Rammed 3 | . 3 . Kicked . | . . . Crushed . | . . . Highest Temperature 40 | . . 40 Average Temperature 18 | . . 18 Received Heat Transfer . | . . . Siege Activations . | . . . Robots Corrupted . | . . . Combat Hostiles . | . . . Parts Fried . | . . . Impact Corruptions . | . . . Robots Melted . | . . . Combat Hostiles . | . . . Parts Melted . | . . . Heat Transferred 125 | . . 125 Parts Sabotaged . | . . . Parts Stolen . | . . . Parts Stripped . | . . . Power Chain Reactions . | . . . Missiles Intercepted . | . . . Alert | -11 -10 -10 ------- Run | Scr Mat Min Peak Influence 137 | . 45 137 Initial 17 | . . 17 Average 50 | . 25 95 Maximum Alert Level . | . . . Low Security (%) 100 | 100 100 100 Level 1 . | . . . Level 2 . | . . . Level 3 . | . . . Level 4 . | . . . Level 5 . | . . . High Security . | . . . Max Security . | . . . Squads Dispatched 3 | . 3 . Investigation . | . . . Extermination . | . . . Reinforcement 3 | . 3 . Assault . | . . . Garrison . | . . . Intercept . | . . . Construction Impeded . | . . . Haulers Reinforced . | . . . Stealth | -11 -10 -10 --------- Run | Scr Mat Min Distress Signals 2 | . . 2 Communications Jammed . | . . . Distress Signals . | . . . Times Spotted 16 | . 3 13 Peak Tracking Total 4 | . 1 4 Tactical Retreats 2 | . . 2 Traps | -11 -10 -10 ------- Run | Scr Mat Min Traps Triggered . | . . . Indirectly . | . . . Trap Hack Attempts . | . . . Triggered . | . . . Disarmed . | . . . Reprogrammed . | . . . Reused . | . . . Traps Extracted . | . . . Installed . | . . . Triggered . | . . . Machines | -11 -10 -10 ---------- Run | Scr Mat Min Machines Disabled . | . . . Max in Single Turn . | . . . Machines Sabotaged . | . . . Garrisons Compromised . | . . . Overloaded Fab Kills . | . . . Fab Network Shutdowns . | . . . Hacking | -11 -10 -10 --------- Run | Scr Mat Min Machines Accessed . | . . . Terminals . | . . . Fabricators . | . . . Repair Stations . | . . . Recycling Units . | . . . Scanalyzers . | . . . Garrison Access . | . . . Total Hacks . | . . . Successful . | . . . Failed . | . . . Catastrophic . | . . . Database Lockouts . | . . . Manual . | . . . Terminals . | . . . Fabricators . | . . . Repair Stations . | . . . Recycling Units . | . . . Scanalyzers . | . . . Garrison Access . | . . . Terminal Hacks . | . . . Fabricator Hacks . | . . . Repair Station Hacks . | . . . Recycling Unit Hacks . | . . . Scanalyzer . | . . . Garrison Access Hacks . | . . . Unauthorized Hacks . | . . . Terminals . | . . . Fabricators . | . . . Repair Stations . | . . . Recycling Units . | . . . Scanalyzers . | . . . Garrison Access . | . . . Data Cores Recovered . | . . . Used . | . . . Hacking Detections . | . . . Full Trace Events . | . . . Feedback Events . | . . . Feedback Blocked . | . . . Robot Schematics Acquired . | . . . Robots Built . | . . . Matter . | . . . Time . | . . . Total Robot Build Rating . | . . . Part Schematics Acquired . | . . . Parts Built . | . . . Matter . | . . . Time . | . . . Total Part Build Rating . | . . . Parts Repaired . | . . . Time . | . . . Parts Recycled . | . . . Recycled Matter . | . . . Retrieved Matter . | . . . Retrieved Components . | . . . Parts Scanalyzed . | . . . Part Schematics Acquired . | . . . Parts Damaged . | . . . Bothacking | -11 -10 -10 ------------ Run | Scr Mat Min Used RIF Installer . | . . . Robots Hacked . | . . . Non-combat . | . . . Combat . | . . . Robot Hacks Applied . | . . . Relay Couplers Released . | . . . Robots Rewired . | . . . Allies Hacked . | . . . Hacks Repelled . | . . . Allies | -11 -10 -10 -------- Run | Scr Mat Min Total Allies . | . . . Largest Group . | . . . Highest-Rated Group . | . . . Highest-Rated Ally . | . . . Total Orders . | . . . Ally Attacks . | . . . Total Damage . | . . . Kills . | . . . Allies Corrupted . | . . . Allies Melted . | . . . Intel | -11 -10 -10 ------- Run | Scr Mat Min Robot Analysis Total . | . . . Derelict Logs Recovered . | . . . Drone Launches . | . . . Drone Recoveries . | . . . Exploration | -11 -10 -10 ------------- Run | Scr Mat Min Turns Passed 655 | 115 263 277 Spaces Moved 351 | 85 138 128 Core 30 | 30 . . Treads 321 | 55 138 128 Legs . | . . . Wheels . | . . . Hover . | . . . Flight . | . . . Fastest Speed 50 | 50 160 160 Average Speed 151 | 121 160 161 Slowest Speed 180 | 160 160 180 Overloaded Moves . | . . . Propulsion Burnouts . | . . . Robots Hopped . | . . . Cave-ins Triggered . | . . . Exploration Rate (%) 20 | 6 21 35 Regions Visited 2 Branch Regions 1 Pre-discovered Areas . | . . . Known Exits Taken 1 | . 1 . Unknown Exits Taken 1 | 1 . . Scrap Searched . | . . . Spaces Dug . | . . . Terrain Destroyed . | . . . Melee . | . . . Projectile . | . . . AOE . | . . . Terrain Rammed . | . . . Walls Destroyed . | . . . Machines Disabled . | . . . Actions | -11 -10 -10 --------- Run | Scr Mat Min Total 441 | 97 172 172 Wait 35 | . 19 16 Move 349 | 84 137 128 Hop . | . . . Pick Up 13 | 8 4 1 Fast Attach . | . . . Attach 8 | 5 1 2 Detach . | . . . Swap 1 | . 1 . Drop . | . . . Fire 32 | . 7 25 Melee . | . . . Ram . | . . . Kick . | . . . Crush 3 | . 3 . Escape Stasis . | . . . Rewire . | . . . Trap . | . . . Miscellaneous . | . . . Route ------- -11/Scrapyard -10/Materials -10/Mines History --------- Turn | Location | Event 6 | -11/Scrapyard | Discovered new exit (range 15) 116 | -11/Scrapyard | Entered Materials 301 | -10/Materials | Discovered new exit (range 12) 308 | -10/Materials | Build established: Mutant 377 | -10/Materials | Identified exit to Mines 379 | -10/Materials | Entered Mines 395 | -10/Mines | Assembled infested the area 502 | -10/Mines | Core integrity fell below 50% 517 | -10/Mines | Core integrity fell below 20% 545 | -10/Mines | Lost 4 parts (1p1n2w) 656 | -10/Mines | Destroyed by S-10 Pest with Light Assault Rifle Last Messages --------------- Acquired 13 matter. Acquired 12 matter. S-10 Pest destroyed. Switching to secondary target: S-10 Pest. Sml. Laser destroyed. Acquired 13 matter. Lgt. Treads destroyed. S-10 Pest destroyed. Ion Engine destroyed. Lgt. Assault Rifle destroyed. K-01 Serf collects debris. K-01 Serf destroyed. R-06 Scavenger collects Lgt. Ion Engine. R-06 Scavenger destroyed. as-42709 destroyed. Acquired 10 matter. K-01 Serf collects debris. Acquired Terrain Scan Processor. K-01 Serf collects debris. [Achievement: First Step to Greatness] Map ----- +----------------------------------------------------+ | | | | | | | | | | | | | | | | | ?????????????????????????????????? | | ?????????????????????????????????? | | ?????????????????????????????????? | | ?????????????????????????????????? | | ?????????????????????????????????? | | ?????????????????????????????????? | | ?????????????????????????????????? | | ????????????????????##?# #???????? | | ??###???????????????# ???????? | | ?## #??????????????# """ ???????? | | ## #?????????????? """ ???????? | | # #????????????? """ ???????? | | # ####?????????? ???????? | | ?# #####??????# #???????? | | ?# ##?????# #???????? | | ?# #?????# s#???????? | | ?# % ###?????# s#####???? | | ?## ###???????# @ #???? | | ??#### ##?????????# #???? | | ?????## #???####???##### #???? | | ??????## ##?## #######?# #???? | | ???????## ### ## ### #???? | | ????????# % #???? | | ????????# #???? | | ????????# ## % ##???? | | ???????# #### %! #????? | | ??????# ##??## ##=%##????? | | ??????# ##????###### !#?????? | | ??????# ##??????##### #?????? | | ??????## #???????# #?????? | | ???????## ##???????# #?????? | | ????????####????????# #####?????? | | ????????????????????# #?????????? | | ????????????????????# #?????????? | | ????????????????????# #?????????? | | ????????????????????# #?????????? | | ????????????????????# ##????????? | | ????????????????????# ##???????? | | ???????????????????## ##??????? | | ??????????########## #??????? | | ?????????# #??????? | | ?????????????###### ##??????? | +----------------------------------------------------+ Best States ------------- Heat Dissipation 25 Energy Generation 10 Energy Capacity 250 Matter Stores 300 Matter Capacity 300 Sight Range 16 Terrain Scan Density 10 Evasion (%) 50 Recoil Reduction 2 Item Schematics ----------------- None Robot Schematics ------------------ None Fabricated ------------ Nothing Alien Tech Used ----------------- None Achievements -------------- First Step to Greatness Challenges ------------ None Game ------ Seed CatalystMissileBoosters Manual? 0 Play Time 00:08:30 Cumulative 8.1 hours Start 2021.09.09 @ 00:52:47 End 2021.09.09 @ 00:59:39 Sessions 1 Manual Loads 0 Difficulty Rogue Special Mode None Game No. 11 Rogue 11 Adventurer 0 Explorer 0 Win Type - Total 0 Types 0/0/0/0/0/0/0/0/0 Lore% 4 Gallery% 11 Achievement% 1 Wizard Run 0 Options --------- ASCII 0 Keyboard 0 Movement Mouse Keybinds 0 Fullscreen 2 Font 36/Smallcaps Map View 76x50 Tactical HUD 0 Map Filters NONE Filters NONE Steam 1 RUN: 758636ea-1d17-42cb-a89c-cf118a08c34f